bitfinex/quotes_SOLUSD_20251103
["timestamp","ask_amount","ask_price","bid_price","bid_amount"]
[1762204018935,20.592,165.95,165.84,21.8246792]
[1762204018936,5.04580935,165.89,165.84,21.8246792]
[1762204019110,20.592,165.95,165.84,21.8246792]
[1762204019111,5.04580935,165.92,165.85,0.72]
[1762204019311,4.9799559,166.01,165.88,9.78882769]
[1762204019520,5.04580935,165.98,165.89,0.72]
[1762204019724,5.04580935,165.97,165.89,0.72]
[1762204019922,5.0799559,166.07,165.9,30.38082769]
[1762204020130,5.04580935,165.99,165.9,30.38082769]
[1762204020316,5.04580935,165.94,165.9,0.72]
[1762204020615,5.04580935,165.93,165.91,6.02736423]
[1762204021016,5.04580935,165.94,165.91,6.74736423]
[1762204021212,5.04580935,165.95,165.91,21.81577481]
[1762204021637,5.04580935,165.96,165.92,0.72]
[1762204022544,5.04580935,165.96,165.93,6.02663773]
[1762204023444,5.04580935,165.95,165.88,15.07078546]
[1762204023754,5.04580935,165.89,165.78,0.2]
[1762204023930,5.04580935,165.85,165.81,0.67]
[1762204024130,5.04580935,165.82,165.81,0.67]
[1762204024325,5.04580935,165.82,165.79,6.03172688]
[1762204024857,5.04580935,165.87,165.8,0.67]
[1762204025244,5.04580935,165.86,165.8,0.67]
[1762204025640,5.04580935,165.85,165.8,0.67]
[1762204025841,5.04580935,165.82,165.78,0.87]
[1762204026045,20.592,165.87,165.78,0.87]
[1762204026360,5.04580935,165.86,165.79,0.67]
[1762204026657,0.14216157,165.92,165.79,0.67]
[1762204026658,5.04580935,165.83,165.79,0.67]
[1762204026856,5.04580935,165.83,165.79,6.70172068]
[1762204027051,5.04580935,165.83,165.8,0.69]
[1762204027255,5.04580935,165.82,165.8,0.69]
[1762204027454,5.04580935,165.81,165.78,6.23203186]
[1762204027754,5.04580935,165.8,165.78,0.2]
[1762204027959,5.04580935,165.79,165.78,0.2]
[1762204028334,25.77997092,165.79,165.77,0.2]
[1762204028641,5.04580935,165.78,165.77,0.2]
[1762204029855,5.18797092,165.78,165.77,0.2]
[1762204030153,25.63780935,165.76,165.75,0.2]
[1762204030554,31.67062788,165.76,165.75,0.2]
[1762204030747,41.60161714,165.76,165.69,0.2]
[1762204030955,5.04580935,165.7,165.69,0.2]
[1762204031351,0.14216157,165.75,165.69,0.2]
[1762204031745,5.04580935,165.7,165.69,0.2]
[1762204031949,5.04580935,165.71,165.69,0.2]
[1762204032266,5.04580935,165.7,165.69,0.2]
[1762204032445,7.81130163,165.7,165.69,0.2]
[1762204033738,23.63513233,165.7,165.69,0.2]
[1762204033939,30.52298926,165.68,165.67,0.2]
[1762204034188,30.52298926,165.68,165.65,0.2]
[1762204034189,38.33429089,165.68,165.65,0.2]
[1762204034345,9.78882769,165.65,165.55,0.7]
[1762204034537,20.592,165.62,165.55,0.7]
[1762204034742,7.81130163,165.6,165.53,0.7]
[1762204035064,20.592,165.62,165.55,6.04042202]
[1762204035266,7.81130163,165.6,165.54,0.7]
[1762204035968,7.81130163,165.6,165.54,6.74069463]
[1762204036170,7.81130163,165.6,165.53,15.10210328]
[1762204036344,7.81130163,165.6,165.55,6.04012719]
[1762204036662,7.81130163,165.6,165.54,0.7]
[1762204037267,15.9696366,165.6,165.51,0.7]
[1762204037564,31.59223986,165.6,165.47,6.04305394]
[1762204037769,0.14216157,165.56,165.47,6.04305394]
[1762204037943,7.81130163,165.57,165.48,0.7]
[1762204038145,50.0,165.67,165.5,20.592]
[1762204038146,9.78882769,165.63,165.5,20.592]
[1762204038350,7.81130163,165.58,165.5,20.592]
[1762204038557,7.81130163,165.63,165.54,20.592]
[1762204038764,6.03652399,165.66,165.55,6.04047115]
[1762204038976,7.81130163,165.62,165.55,6.74047115]
[1762204039161,15.82438686,165.69,165.56,0.7]
[1762204039368,9.78882769,165.67,165.54,6.04081912]
[1762204039551,7.81130163,165.58,165.54,6.04081912]
[1762204039751,7.81130163,165.58,165.53,6.74113639]
[1762204039947,7.81130163,165.58,165.53,0.7]
[1762204040152,7.81130163,165.55,165.5,0.7]
[1762204040366,7.81130163,165.55,165.51,0.7]
[1762204040584,7.81130163,165.57,165.51,0.7]
[1762204040767,7.81130163,165.58,165.52,6.04156597]
[1762204041263,7.81130163,165.57,165.52,0.7]
[1762204041763,20.592,165.59,165.52,0.7]
[1762204041764,7.81130163,165.54,165.52,0.7]
[1762204042077,20.592,165.65,165.52,0.7]
[1762204042261,7.81130163,165.59,165.52,0.7]
[1762204042658,7.81130163,165.57,165.52,0.7]
[1762204042854,7.81130163,165.54,165.49,0.7]
[1762204043068,7.81130163,165.54,165.5,6.04229607]
[1762204043268,7.81130163,165.53,165.49,6.74262903]
[1762204043582,7.81130163,165.53,165.49,0.7]
[1762204043787,7.81130163,165.5,165.44,21.15570598]
[1762204043951,7.81130163,165.48,165.45,0.7]
[1762204044361,20.592,165.57,165.45,0.7]
[1762204044560,7.81130163,165.55,165.47,20.592]
[1762204044781,28.40330163,165.57,165.48,9.93098926]
[1762204044962,15.09323574,165.64,165.48,9.93098926]
[1762204044963,7.81130163,165.6,165.5,9.93098926]
[1762204045171,7.81130163,165.61,165.5,30.52298926]
[1762204045364,7.81130163,165.61,165.52,9.93098926]
[1762204045759,7.81130163,165.62,165.53,0.7]
[1762204045974,7.81130163,165.61,165.53,0.7]
[1762204046178,7.81130163,165.59,165.53,0.7]
[1762204046798,7.81130163,165.6,165.53,0.7]
[1762204047001,7.81130163,165.59,165.54,6.04083605]
[1762204047505,7.81130163,165.59,165.55,0.7]
[1762204048995,20.592,165.57,165.49,6.74253548]
[1762204049177,7.81130163,165.52,165.49,0.7]
[1762204049378,7.81130163,165.51,165.49,0.7]
[1762204049770,20.592,165.55,165.49,0.7]
[1762204049977,20.592,165.55,165.44,6.04442569]
[1762204050167,7.81130163,165.46,165.44,0.7]
[1762204050679,7.81130163,165.46,165.42,6.24514701]
[1762204051279,7.81130163,165.47,165.43,0.7]
[1762204051472,7.81130163,165.48,165.43,0.7]
[1762204051796,7.81130163,165.47,165.43,0.7]
[1762204051984,28.40330163,165.49,165.43,0.7]
[1762204052189,7.81130163,165.48,165.43,0.7]
[1762204052385,3.16048272,165.53,165.43,0.7]
[1762204052589,9.78882769,165.54,165.43,0.7]
[1762204052590,28.40330163,165.51,165.43,0.7]
[1762204052895,0.14216157,165.55,165.43,0.7]
[1762204052896,7.81130163,165.55,165.46,9.93098926]
[1762204053078,7.81130163,165.55,165.47,21.15187042]
[1762204053284,7.81130163,165.48,165.43,6.7248528]
[1762204053488,20.592,165.52,165.43,6.7248528]
[1762204053489,7.81130163,165.47,165.43,6.7248528]
[1762204053690,7.81130163,165.47,165.44,0.68]
[1762204053895,7.81130163,165.49,165.44,0.68]
[1762204054082,7.81130163,165.48,165.44,0.68]
[1762204054702,20.592,165.5,165.44,0.68]
[1762204054905,7.81130163,165.48,165.44,0.68]
[1762204055103,7.81130163,165.48,165.45,6.04412209]
[1762204055617,7.81130163,165.48,165.46,0.68]
[1762204055824,7.81130163,165.49,165.46,0.68]
[1762204056002,3.16000168,165.56,165.46,0.68]
[1762204056318,7.81130163,165.58,165.49,20.592]
[1762204056795,7.81130163,165.58,165.5,0.68]
[1762204056985,7.81130163,165.57,165.51,6.041931]
[1762204057616,7.81130163,165.57,165.52,0.68]
[1762204057989,7.81130163,165.54,165.49,0.68]
[1762204058195,7.81130163,165.53,165.49,0.68]
[1762204058524,9.78882769,165.58,165.38,0.2]
[1762204058525,7.81130163,165.5,165.38,0.2]
[1762204058711,7.81130163,165.46,165.44,0.68]
[1762204059016,7.81130163,165.47,165.44,0.68]
[1762204059188,7.81130163,165.47,165.45,6.04412209]
[1762204059631,0.14216157,165.53,165.42,0.2]
[1762204059632,7.81130163,165.46,165.42,0.2]
[1762204059918,7.81130163,165.43,165.42,0.2]
[1762204060284,30.52298926,165.46,165.42,0.2]
[1762204060486,7.81130163,165.43,165.42,0.2]
[1762204061194,7.81130163,165.44,165.42,0.2]
[1762204061402,15.1011897,165.55,165.42,22.06816312]
[1762204061614,20.592,165.51,165.42,22.06816312]
[1762204061794,7.81130163,165.49,165.43,0.71]
[1762204061985,7.81130163,165.5,165.43,0.71]
[1762204062309,7.81130163,165.46,165.43,0.71]
[1762204062518,20.592,165.51,165.43,0.71]
[1762204062519,7.81130163,165.45,165.43,0.71]
[1762204062695,7.81130163,165.46,165.43,0.71]
[1762204062897,7.81130163,165.47,165.43,0.71]
[1762204063105,7.81130163,165.47,165.43,6.75469781]
[1762204063406,20.592,165.49,165.44,0.71]
[1762204063609,7.81130163,165.47,165.44,0.71]
[1762204063989,7.81130163,165.46,165.44,0.71]
[1762204065220,7.81130163,165.46,165.44,6.75447204]
[1762204065419,7.81130163,165.47,165.44,0.71]
[1762204065616,7.81130163,165.47,165.44,6.75435456]
[1762204065798,20.592,165.5,165.45,0.71]
[1762204065998,7.81130163,165.49,165.45,0.71]
[1762204066411,42.5,165.55,165.45,0.71]
[1762204066611,7.81130163,165.54,165.45,0.71]
[1762204066822,7.81130163,165.53,165.45,0.71]
[1762204067194,7.81130163,165.53,165.46,21.15314878]
[1762204067411,7.81130163,165.52,165.47,0.71]
[1762204067921,7.81130163,165.53,165.47,0.71]
[1762204068996,0.07,165.59,165.49,20.592]
[1762204069195,7.81130163,165.57,165.5,21.85803625]
[1762204069502,0.07,165.59,165.51,0.71]
[1762204069503,28.40330163,165.58,165.51,0.71]
[1762204069909,0.07,165.59,165.51,0.71]
[1762204070116,0.07,165.59,165.52,9.93098926]
[1762204070292,0.07,165.59,165.51,0.71]
[1762204070293,7.81130163,165.57,165.51,0.71]
[1762204071214,7.81130163,165.58,165.52,21.1454809]
[1762204071613,7.81130163,165.58,165.53,0.71]
[1762204072134,7.81130163,165.54,165.5,6.0422857]
[1762204072428,7.81130163,165.53,165.5,6.7522857]
[1762204072639,7.81130163,165.53,165.5,21.85802588]
[1762204072800,7.81130163,165.53,165.51,0.71]
[1762204073002,3.98038262,165.57,165.51,0.71]
[1762204073205,3.98038262,165.57,165.52,21.1454809]
[1762204073412,11.79168425,165.58,165.52,21.1454809]
[1762204073617,3.98038262,165.57,165.53,0.71]
[1762204074028,7.88130163,165.59,165.53,0.71]
[1762204074223,3.98038262,165.58,165.53,0.71]
[1762204075015,4.05038262,165.59,165.55,20.592]
[1762204075216,0.07,165.59,165.57,0.14216157]
[1762204075412,0.07,165.59,165.58,10.64098926]
[1762204076307,0.07,165.59,165.58,21.302]
[1762204077033,1e-08,165.59,165.58,31.23298926]
[1762204077323,1e-08,165.59,165.58,37.27236599]
[1762204077531,1e-08,165.59,165.58,0.71]
[1762204077907,1e-08,165.59,165.58,6.74937673]
[1762204080228,1e-08,165.59,165.56,6.04002748]
[1762204080402,1e-08,165.59,165.42,0.2]
[1762204080403,7.81130163,165.57,165.53,0.71]
[1762204080732,7.81130163,165.57,165.49,6.04266118]
[1762204080733,20.592,165.57,165.49,6.04266118]
[1762204080910,1e-08,165.59,165.5,0.71]
[1762204081110,7.81130163,165.54,165.5,0.71]
[1762204081306,7.81130163,165.54,165.51,6.041931]
[1762204081508,1e-08,165.59,165.51,6.041931]
[1762204081914,7.81130163,165.56,165.52,0.71]
[1762204082120,7.81130163,165.57,165.52,0.71]
[1762204082330,1e-08,165.59,165.52,0.71]
[1762204082632,7.81130163,165.58,165.52,0.71]
[1762204082831,1e-08,165.59,165.52,0.71]
[1762204083049,1e-08,165.59,165.54,0.14216157]
[1762204083219,1e-08,165.59,165.56,20.592]
[1762204083426,1e-08,165.59,165.57,6.03974149]
[1762204083729,1e-08,165.59,165.57,6.74974149]
[1762204083929,7.81130163,165.58,165.54,6.04083502]
[1762204084132,7.81130163,165.55,165.51,0.71]
[1762204084429,1e-08,165.59,165.51,6.75187142]
[1762204084430,7.81130163,165.53,165.51,6.75187142]
[1762204084818,20.592,165.58,165.49,15.10656701]
[1762204085007,1e-08,165.59,165.52,21.302]
[1762204085210,7.81130164,165.59,165.52,21.302]
[1762204085411,1e-08,165.59,165.56,20.592]
[1762204085719,1e-08,165.59,165.57,20.592]
[1762204086231,1e-08,165.59,165.54,0.71]
[1762204086445,1e-08,165.59,165.55,0.71]
[1762204087331,1e-08,165.59,165.56,21.14037206]
[1762204087532,1e-08,165.59,165.58,20.592]
[1762204088044,1e-08,165.59,165.58,0.71]
[1762204088422,1e-08,165.59,165.58,21.302]
[1762204089129,1e-08,165.59,165.58,0.71]
[1762204089316,1e-08,165.59,165.58,6.74937673]
[1762204089714,1e-08,165.59,165.58,6.8915383]
[1762204093915,20.592,165.73,165.61,30.38082769]
[1762204093916,28.40330163,165.73,165.61,30.38082769]
[1762204094238,0.1,165.76,165.62,0.14216157]
[1762204094443,5.05965466,165.74,165.67,9.78882769]
[1762204095123,5.03862154,165.74,165.67,9.78882769]
[1762204095322,5.05965466,165.74,165.68,21.12506035]
[1762204095638,0.1,165.76,165.68,21.83506035]
[1762204095851,5.05965466,165.73,165.66,0.71]
[1762204096021,5.05965466,165.74,165.66,0.71]
[1762204096520,20.692,165.76,165.68,20.592]
[1762204096521,5.05965466,165.75,165.68,20.592]
[1762204097032,5.05965466,165.75,165.69,0.71]
[1762204097437,5.05965466,165.75,165.7,6.03500301]
[1762204097819,5.05965466,165.74,165.7,6.03500301]
[1762204098026,5.05965466,165.75,165.7,6.03500301]
[1762204098624,5.05965466,165.74,165.7,6.03500301]
[1762204099621,5.05965466,165.74,165.69,21.12344786]
[1762204099941,5.05965466,165.74,165.69,21.83344786]
[1762204100345,4.55965466,165.74,165.69,21.83344786]
[1762204100720,42.6,165.76,165.69,21.83344786]
[1762204100721,5.05965466,165.75,165.7,0.71]
[1762204101331,47.65965466,165.76,165.7,0.71]
[1762204101532,5.05965466,165.75,165.69,6.03536725]
[1762204101738,5.05965466,165.75,165.69,0.71]
[1762204101924,5.05965466,165.75,165.7,0.71]
[1762204102299,5.05965466,165.73,165.65,20.592]
[1762204102454,5.05965466,165.71,165.64,0.71]
[1762204103018,42.5,165.74,165.65,30.38082769]
[1762204103249,42.5,165.74,165.66,0.14216157]
[1762204103423,42.5,165.74,165.66,0.85216157]
[1762204103948,42.5,165.74,165.67,21.12633548]
[1762204104336,42.5,165.74,165.68,0.71]
[1762204105237,42.5,165.74,165.69,6.03536725]
[1762204105556,5.05965466,165.75,165.69,21.83378538]
[1762204106180,25.75165466,165.76,165.69,21.83378538]
[1762204106347,5.05965466,165.75,165.69,21.83378538]
[1762204106547,5.05965466,165.74,165.69,6.03536725]
[1762204106753,5.05965466,165.71,165.65,0.71]
[1762204107041,5.05965466,165.7,165.63,0.71]
[1762204107270,5.05965466,165.67,165.53,1.99999999]
[1762204107441,5.05965466,165.67,165.61,0.71]
[1762204107643,5.05965466,165.68,165.61,0.71]
[1762204108363,5.05965466,165.69,165.61,0.71]
[1762204108544,3.99702287,165.72,165.62,6.03791812]
[1762204108740,5.05965466,165.7,165.62,21.13271343]
[1762204108940,5.05965466,165.7,165.63,0.67]
[1762204109179,5.05965466,165.68,165.6,0.67]
[1762204109380,5.05965466,165.66,165.59,6.03894066]
[1762204109672,5.05965466,165.66,165.59,6.70894066]
[1762204109874,20.592,165.68,165.59,6.70894066]
[1762204110054,20.592,165.68,165.6,0.67]
[1762204110369,20.592,165.7,165.61,9.93098926]
[1762204110578,4.00408952,165.69,165.62,21.80271343]
[1762204111463,4.00408952,165.69,165.63,0.67]
[1762204111843,9.06374418,165.69,165.63,0.67]
[1762204112645,5.05965466,165.68,165.61,6.03822896]
[1762204112855,5.05965466,165.68,165.61,6.75822896]
[1762204112856,9.06374418,165.68,165.61,6.75822896]
[1762204113165,9.06374418,165.68,165.61,0.72]
[1762204113468,5.05965466,165.62,165.56,0.72]
[1762204113643,20.592,165.65,165.56,0.72]
[1762204113844,20.592,165.65,165.57,9.78882769]
[1762204114056,25.65165466,165.67,165.58,0.72]
[1762204114259,4.01293692,165.66,165.58,0.72]
[1762204114661,5.05965466,165.64,165.59,6.03901201]
[1762204114845,9.07259158,165.66,165.59,21.13654205]
[1762204115046,5.05965466,165.65,165.59,21.13654205]
[1762204115552,5.05965466,165.65,165.59,6.75901201]
[1762204115871,5.05965466,165.65,165.59,21.85654205]
[1762204116760,5.05965466,165.65,165.59,6.75901201]
[1762204117148,9.07259158,165.66,165.59,21.13654205]
[1762204117470,4.01293692,165.66,165.6,0.72]
[1762204117855,9.07259158,165.66,165.6,0.72]
[1762204118054,5.05965466,165.65,165.6,0.72]
[1762204118668,9.07259158,165.65,165.6,6.7585555]
[1762204120256,5.05965466,165.64,165.58,6.03937673]
[1762204120569,5.05965466,165.64,165.58,6.75937673]
[1762204120971,5.05965466,165.64,165.58,21.85781857]
[1762204121165,9.07259158,165.65,165.58,21.13781857]
[1762204121482,9.07259158,165.65,165.59,0.72]
[1762204121683,9.07259158,165.65,165.58,6.03937673]
[1762204121684,5.05965466,165.62,165.58,6.03937673]
[1762204122172,5.05965466,165.62,165.56,21.13974155]
[1762204122480,5.05965466,165.62,165.56,21.85974155]
[1762204122658,4.01293692,165.65,165.57,10.65098926]
[1762204122978,9.07259158,165.69,165.59,20.592]
[1762204123353,5.05965466,165.68,165.6,0.72]
[1762204123559,20.592,165.66,165.6,0.72]
[1762204123779,5.05965466,165.68,165.6,0.72]
[1762204123969,20.592,165.67,165.6,0.72]
[1762204124280,20.592,165.67,165.61,21.13398949]
[1762204124479,5.05965466,165.7,165.62,0.72]
[1762204124656,20.592,165.67,165.62,0.72]
[1762204124860,25.65165466,165.7,165.62,0.72]
[1762204125060,4.01871579,165.69,165.62,0.72]
[1762204125262,5.05965466,165.7,165.62,0.72]
[1762204125770,25.65165466,165.7,165.62,0.72]
[1762204126085,4.01871579,165.69,165.62,0.72]
[1762204126304,4.01871579,165.69,165.63,6.03755358]
[1762204126659,4.01871579,165.69,165.63,21.85143753]
[1762204127102,9.07837045,165.69,165.63,0.72]
[1762204128282,9.07837045,165.69,165.64,6.03718908]
[1762204128698,9.07837045,165.69,165.64,6.75718908]
[1762204129797,9.07837045,165.69,165.64,0.72]
[1762204130100,42.5,165.68,165.64,0.72]
[1762204130402,42.5,165.68,165.65,6.03682463]
[1762204130575,42.5,165.68,165.64,0.72]
[1762204130772,5.05965466,165.65,165.59,0.72]
[1762204130996,24.62322318,165.67,165.56,21.86037206]
[1762204131181,5.05965466,165.64,165.57,0.72]
[1762204131584,5.05965466,165.61,165.56,6.0401063]
[1762204131781,5.05965466,165.59,165.54,6.76060587]
[1762204132285,5.05965466,165.58,165.56,6.0401063]
[1762204132481,4.03122318,165.63,165.56,6.0401063]
[1762204132804,5.05965466,165.61,165.57,0.72]
[1762204134384,5.05965466,165.61,165.58,6.03937673]
[1762204134676,5.05965466,165.59,165.55,6.76047115]
[1762204134879,5.05965466,165.6,165.55,6.04047115]
[1762204135086,5.05965466,165.6,165.56,0.72]
[1762204135288,5.05965466,165.61,165.56,0.72]
[1762204136699,5.05965466,165.61,165.57,6.03974149]
[1762204137082,5.05965466,165.61,165.58,0.72]
[1762204137391,5.05965466,165.62,165.58,0.72]
[1762204137902,4.03122318,165.63,165.53,50.79713335]
[1762204137903,5.05965466,165.6,165.55,6.7601212]
[1762204138078,5.05965466,165.6,165.55,6.0401212]
[1762204138280,5.05965466,165.6,165.56,0.72]
[1762204138592,5.05965466,165.6,165.57,6.03974149]
[1762204138790,5.05965466,165.6,165.56,6.75983628]
[1762204138985,5.05965466,165.6,165.56,6.03983628]
[1762204139203,5.05965466,165.6,165.55,15.10117789]
[1762204139204,5.05965466,165.6,165.57,0.72]
[1762204140010,5.05965466,165.61,165.57,0.72]
[1762204140782,5.05965466,165.59,165.53,0.72]
[1762204140987,5.05965466,165.57,165.53,0.72]
[1762204141386,5.05965466,165.58,165.53,0.72]
[1762204141594,4.80965466,165.58,165.53,0.72]
[1762204142095,5.05965466,165.56,165.51,15.82410263]
[1762204142283,5.05965466,165.55,165.51,6.76188456]
[1762204142483,5.05965466,165.53,165.51,6.74188456]
[1762204142685,5.05965466,165.52,165.48,0.7]
[1762204142883,5.05965466,165.49,165.44,0.7]
[1762204143086,20.592,165.54,165.43,0.2]
[1762204143087,5.05965466,165.45,165.43,0.2]
[1762204143299,5.05965466,165.44,165.43,0.2]
[1762204143707,4.0230677,165.49,165.43,0.9]
[1762204143906,20.592,165.54,165.44,0.14216157]
[1762204144085,20.592,165.54,165.47,21.15187042]
[1762204144287,5.05965466,165.52,165.47,21.85187042]
[1762204144889,5.05965466,165.52,165.47,6.74339155]
[1762204145304,4.01983633,165.54,165.47,0.7]
[1762204145506,4.01983633,165.54,165.45,21.1541853]
[1762204145812,5.05965466,165.52,165.47,0.7]
[1762204146195,5.05965466,165.52,165.48,6.04302634]
[1762204146601,5.05965466,165.52,165.48,6.74302634]
[1762204146817,5.05965466,165.56,165.49,0.7]
[1762204147006,4.01903609,165.6,165.5,9.78882769]
[1762204147348,5.05965466,165.63,165.54,9.78882769]
[1762204147495,5.05965466,165.63,165.55,0.7]
[1762204147695,5.05965466,165.62,165.55,0.7]
[1762204147891,5.05965466,165.63,165.55,0.7]
[1762204148098,4.01903609,165.67,165.56,51.34090358]
[1762204148099,9.07869075,165.67,165.56,51.34090358]
[1762204148298,9.07869075,165.69,165.59,20.592]
[1762204148517,5.05965466,165.7,165.6,9.93098926]
[1762204148691,5.05965466,165.73,165.63,20.592]
[1762204148900,5.05965466,165.73,165.64,0.7]
[1762204149090,0.1,165.76,165.64,0.7]
[1762204149091,5.05965466,165.72,165.64,0.7]
[1762204149610,5.05965466,165.71,165.64,0.7]
[1762204150217,4.02569453,165.75,165.65,21.1288862]
[1762204150407,0.1,165.76,165.65,21.1288862]
[1762204150408,5.05965466,165.74,165.65,21.1288862]
[1762204150719,5.05965466,165.74,165.66,0.7]
[1762204150902,9.08534919,165.74,165.66,0.7]
[1762204151087,5.05965466,165.73,165.66,0.7]
[1762204151292,9.08534919,165.73,165.66,0.7]
[1762204151710,5.05965466,165.73,165.66,0.7]
[1762204152220,9.0881348,165.73,165.67,6.03609585]
[1762204152514,0.1,165.76,165.68,9.93098926]
[1762204152717,0.1,165.76,165.69,0.7]
[1762204153013,5.15965466,165.76,165.7,20.592]
[1762204153217,5.05965466,165.75,165.69,0.7]
[1762204153396,5.05965466,165.72,165.65,0.7]
[1762204153592,5.05965466,165.72,165.52,54.9387823]
[1762204153593,5.05965466,165.69,165.66,0.7]
[1762204153999,5.05965466,165.7,165.66,0.7]
[1762204154206,5.05965466,165.7,165.66,6.73616066]
[1762204154609,5.05965466,165.7,165.62,30.38082769]
[1762204154914,5.05965466,165.66,165.63,0.7]
[1762204155121,25.65165466,165.7,165.63,0.7]
[1762204155295,5.05965466,165.68,165.63,0.7]
[1762204155499,20.592,165.71,165.63,0.7]
[1762204155698,5.05965466,165.65,165.61,6.03794563]
[1762204155916,5.05965466,165.66,165.61,6.73794563]
[1762204156223,5.05965466,165.65,165.62,6.73766313]
[1762204156428,7.81391585,165.66,165.62,6.73766313]
[1762204156622,7.81391585,165.66,165.62,6.03766313]
[1762204156824,7.81391585,165.65,165.6,6.73844564]
[1762204157005,7.81391585,165.66,165.61,0.7]
[1762204157524,7.81391585,165.64,165.61,0.7]
[1762204158228,0.14216157,165.72,165.62,6.03791812]
[1762204158535,0.14216157,165.72,165.59,0.7]
[1762204158536,7.81391585,165.64,165.59,0.7]
[1762204158740,7.81391585,165.62,165.59,0.7]
[1762204159112,7.81391585,165.63,165.59,0.7]
[1762204159648,7.81391585,165.6,165.53,0.7]
[1762204159847,7.81391585,165.56,165.53,0.7]
[1762204160023,7.81391585,165.58,165.53,0.7]
[1762204160222,7.81391585,165.58,165.54,6.04083605]
[1762204160439,7.81391585,165.62,165.54,6.04083605]
[1762204160749,7.81391585,165.62,165.55,0.7]
[1762204161443,7.81391585,165.61,165.55,0.7]
[1762204161616,7.81391585,165.6,165.55,0.7]
[1762204162430,7.81391585,165.6,165.56,21.14037206]
[1762204162820,7.81391585,165.6,165.56,6.7401063]
[1762204163025,7.81391585,165.6,165.57,0.7]
[1762204163230,7.81391585,165.61,165.57,0.7]
[1762204163551,0.14216157,165.66,165.57,0.7]
[1762204163712,4.03092062,165.68,165.57,0.7]
[1762204163917,7.81391585,165.69,165.6,0.14216157]
[1762204164141,11.84483647,165.7,165.61,20.592]
[1762204164350,7.81391585,165.7,165.63,21.13143753]
[1762204164712,7.81391585,165.67,165.62,0.7]
[1762204165029,7.81391585,165.68,165.62,21.83260502]
[1762204165216,4.03152013,165.7,165.62,21.83260502]
[1762204165217,7.81391585,165.69,165.62,21.83260502]
[1762204165416,7.81391585,165.69,165.63,0.7]
[1762204165928,6.03397231,165.73,165.63,0.7]
[1762204165929,7.81391585,165.68,165.63,0.7]
[1762204166359,7.81391585,165.68,165.64,6.03718908]
[1762204166952,7.81391585,165.68,165.63,6.03753617]
[1762204167159,4.03254444,165.7,165.62,15.09479531]
[1762204167160,7.81391585,165.66,165.62,6.73781896]
[1762204167760,7.81391585,165.63,165.59,0.66]
[1762204167943,4.03254444,165.67,165.59,0.66]
[1762204168143,7.81391585,165.62,165.59,0.66]
[1762204168452,7.81391585,165.6,165.56,0.66]
[1762204168664,7.81391585,165.58,165.56,0.66]
[1762204168861,7.81391585,165.59,165.56,6.70010007]
[1762204169046,7.81391585,165.61,165.57,0.66]
[1762204169227,7.81391585,165.6,165.57,0.66]
[1762204169432,7.81391585,165.58,165.53,21.252]
[1762204169629,7.81391585,165.54,165.48,0.66]
[1762204169832,28.54807742,165.6,165.48,0.66]
[1762204169833,20.592,165.56,165.48,0.66]
[1762204170057,7.81391585,165.55,165.48,0.66]
[1762204170443,7.81391585,165.56,165.49,21.14931414]
[1762204170856,7.81391585,165.56,165.5,0.66]
[1762204171070,20.592,165.59,165.5,10.44882769]
[1762204171234,7.81391585,165.6,165.51,9.93098926]
[1762204171430,28.40591585,165.61,165.53,9.93098926]
[1762204171632,7.81391585,165.6,165.53,9.93098926]
[1762204171934,7.81391585,165.6,165.54,0.66]
[1762204172168,5.03560017,165.67,165.54,0.66]
[1762204172331,7.81391585,165.64,165.56,21.14037206]
[1762204172762,4.02789365,165.66,165.57,0.67]
[1762204172959,5.03560017,165.69,165.57,0.67]
[1762204172960,7.81391585,165.65,165.57,0.67]
[1762204173331,20.592,165.66,165.57,0.67]
[1762204173332,28.40591585,165.66,165.58,9.93098926]
[1762204173754,7.81391585,165.65,165.59,0.67]